bitfinex/quotes_ETHUSD_20251110
["timestamp","ask_amount","ask_price","bid_price","bid_amount"]
[1762784914351,0.66130206,3606.3,3606.0,0.1969]
[1762784914507,0.405504,3606.1,3606.0,0.1969]
[1762784914708,0.66130206,3606.1,3606.0,0.1969]
[1762784914912,0.66130206,3606.1,3606.0,0.6813]
[1762784915107,0.66130206,3606.1,3606.0,1.1579]
[1762784915314,0.66130206,3606.1,3606.0,0.6813]
[1762784915850,0.66130206,3606.1,3605.9,0.002]
[1762784916034,0.66130206,3606.0,3605.9,0.002]
[1762784918371,0.66130206,3606.0,3605.1,0.012]
[1762784918372,0.405504,3605.9,3605.1,0.012]
[1762784918668,0.647,3606.4,3605.1,0.012]
[1762784918669,5.96737539,3605.6,3605.1,0.012]
[1762784918838,6.87017345,3605.6,3605.1,0.012]
[1762784926951,6.87017345,3605.6,3605.5,0.4864]
[1762784927335,6.87017345,3605.6,3605.5,0.002]
[1762784928072,6.8706532,3605.6,3605.5,0.002]
[1762784928231,6.8698532,3605.6,3605.5,0.002]
[1762784928868,6.8698532,3605.6,3605.5,0.963]
[1762784928869,2.16298981,3605.6,3605.5,0.963]
[1762784929070,2.16298981,3605.6,3605.5,0.4864]
[1762784929275,2.56849381,3605.6,3605.5,0.4864]
[1762784929483,2.56849381,3605.6,3605.5,0.002]
[1762784930688,1.51598981,3605.6,3605.5,0.4864]
[1762784930836,1.51598981,3605.6,3605.5,0.963]
[1762784931369,0.25627781,3605.6,3605.5,0.963]
[1762784934480,0.25627781,3605.6,3605.5,1.33666352]
[1762784934719,0.25627781,3605.6,3605.5,0.963]
[1762784939376,0.66178181,3605.6,3605.5,0.963]
[1762784941396,0.25627781,3605.6,3605.5,0.963]
[1762784941595,0.25627781,3605.6,3605.5,3.73654042]
[1762784941972,0.66178181,3605.6,3605.5,0.963]
[1762784942167,0.66178181,3605.6,3605.5,4.41808393]
[1762784942408,0.66178181,3605.6,3605.5,1.61680811]
[1762784942610,0.66178181,3605.6,3605.5,0.963]
[1762784942918,0.25627781,3605.6,3605.5,3.73654042]
[1762784943118,0.25627781,3605.6,3605.5,0.963]
[1762784943333,0.25627781,3605.6,3605.5,3.73654042]
[1762784943939,0.25627781,3605.6,3605.5,0.963]
[1762784944440,0.25627781,3605.6,3605.5,1.33666933]
[1762784945246,0.0002,3607.5,3606.0,2.77313011]
[1762784945465,0.0002,3607.5,3606.4,0.4639]
[1762784945625,0.0002,3607.5,3607.4,0.4639]
[1762784945938,0.0002,3607.5,3606.3,0.1944]
[1762784946106,1.259712,3607.4,3606.3,0.1944]
[1762784946310,0.405504,3607.3,3606.3,0.1944]
[1762784947642,0.7906027,3607.3,3606.3,0.6864]
[1762784948149,0.405504,3607.3,3606.4,0.492]
[1762784949042,0.405504,3607.3,3606.3,0.1944]
[1762784949344,0.405504,3607.3,3606.3,0.6864]
[1762784949700,0.405504,3607.3,3606.4,0.492]
[1762784950138,1.259712,3607.4,3606.4,0.492]
[1762784950341,0.0002,3607.5,3606.4,0.492]
[1762784950342,0.647,3607.3,3606.4,0.492]
[1762784950552,0.647,3607.3,3606.3,0.1944]
[1762784950948,0.405504,3607.2,3606.3,0.6864]
[1762784951463,0.7906027,3607.2,3606.3,0.6864]
[1762784951870,1.665216,3606.8,3605.9,0.1944]
[1762784952068,0.405504,3606.6,3605.9,0.6864]
[1762784952364,0.404704,3606.6,3605.9,0.6864]
[1762784953661,0.404704,3606.6,3605.6,0.002]
[1762784954162,0.404704,3606.6,3605.7,0.492]
[1762784954369,0.404704,3606.6,3606.5,0.4639]
[1762784954661,1.052504,3606.6,3606.5,0.4639]
[1762784955059,0.405504,3606.5,3605.9,0.492]
[1762784956447,0.405504,3606.5,3605.6,0.002]
[1762784956636,0.405504,3606.5,3605.6,0.494]
[1762784957219,0.405504,3606.3,3605.6,0.494]
[1762784957462,0.405504,3606.1,3605.6,0.494]
[1762784957671,0.405504,3605.9,3605.6,0.494]
[1762784957870,0.405504,3605.7,3605.6,0.494]
[1762784958029,0.66288714,3605.7,3605.6,0.494]
[1762784958377,0.66288714,3605.7,3605.6,0.9579]
[1762784959663,0.66288714,3605.7,3605.6,1.35069852]
[1762784959823,0.66288714,3605.7,3605.6,0.9579]
[1762784963229,0.66288714,3605.7,3605.6,0.4659]
[1762784963574,0.66288714,3605.7,3605.6,0.002]
[1762784964398,2.33744784,3605.7,3605.6,0.002]
[1762784966733,2.57059914,3605.7,3605.6,0.002]
[1762784967297,2.88558779,3605.7,3605.6,0.002]
[1762784967538,2.57059914,3605.7,3605.6,0.002]
[1762784968536,1.31088714,3605.7,3605.6,0.002]
[1762784971106,1.31088714,3605.7,3605.6,0.4967]
[1762784971945,1.31088714,3605.7,3605.6,0.002]
[1762784972115,1.31088714,3605.7,3605.6,0.4967]
[1762784972648,1.31088714,3605.7,3605.6,0.9467]
[1762784973646,0.25738314,3605.7,3605.6,0.9467]
[1762784973804,0.66288714,3605.7,3605.6,0.9467]
[1762784975041,0.66288714,3605.7,3605.6,0.4967]
[1762784975405,0.66288714,3605.7,3605.6,0.002]
[1762784976434,0.66208714,3605.7,3605.6,0.002]
[1762784984354,0.66208714,3605.7,3605.6,0.9467]
[1762784984690,0.66208714,3605.7,3605.6,0.002]
[1762784984871,6.11618228,3605.7,3605.6,0.002]
[1762784987240,2.56879914,3605.7,3605.6,0.9467]
[1762784988163,2.56879914,3605.7,3605.6,0.002]
[1762784988353,2.56879914,3605.7,3605.6,0.4967]
[1762784988567,2.56879914,3605.7,3605.6,0.9467]
[1762784989139,1.92179914,3605.7,3605.6,0.9467]
[1762784989381,2.56879914,3605.7,3605.6,0.9467]
[1762784989975,1.51629514,3605.7,3605.6,0.9467]
[1762784990158,2.16329514,3605.7,3605.6,0.9467]
[1762784990361,2.56879914,3605.7,3605.6,0.9467]
[1762784990684,2.56979914,3605.7,3605.6,0.9467]
[1762784991045,0.25758314,3605.7,3605.6,0.9467]
[1762784991246,0.25758314,3605.7,3605.6,1.31893829]
[1762784991441,0.25758314,3605.7,3605.6,0.9467]
[1762784993592,0.25758314,3605.7,3605.6,3.7201635]
[1762784996966,0.25758314,3605.7,3605.6,0.9467]
[1762784997291,0.25758314,3605.7,3605.6,3.7201635]
[1762784997958,0.25758314,3605.7,3605.6,0.9467]
[1762784998159,0.25758314,3605.7,3605.6,1.31892937]
[1762784998558,0.25758314,3605.7,3605.6,0.9467]
[1762784998954,0.25758314,3605.7,3605.6,3.7201635]
[1762785000289,0.25678314,3605.7,3605.6,3.7201635]
[1762785000496,0.001,3606.1,3605.6,0.9467]
[1762785000702,0.001,3606.1,3606.0,0.486]
[1762785001065,0.115,3607.2,3607.0,4564.77951565]
[1762785001289,0.405504,3607.1,3607.0,4564.77951565]
[1762785001598,3.54402535,3607.2,3607.0,4564.77951565]
[1762785001890,0.0002,3607.5,3607.0,4564.77951565]
[1762785002395,0.0002,3607.5,3607.2,0.486]
[1762785002757,0.0002,3607.5,3607.2,0.9412]
[1762785002957,0.405704,3607.5,3607.2,0.9412]
[1762785003157,0.0002,3607.5,3607.2,0.9412]
[1762785003357,3.54402535,3607.4,3607.0,4564.77951565]
[1762785003589,1.665216,3607.1,3607.0,4565.23471565]
[1762785003791,0.405504,3607.2,3607.0,4564.77951565]
[1762785003993,0.0002,3607.5,3607.1,0.0277231]
[1762785004288,0.0002,3607.5,3607.2,0.6812]
[1762785004289,0.406504,3607.3,3607.2,0.6812]
[1762785004895,0.001,3607.3,3607.2,1.1364]
[1762785005759,0.405504,3607.2,3607.0,4564.77951565]
[1762785005967,5.20924135,3607.1,3607.0,4564.77951565]
[1762785006186,5.20924135,3607.1,3607.0,4564.78565333]
[1762785006382,1.665216,3607.1,3607.0,4564.78565333]
[1762785006798,2.02313093,3607.1,3607.0,4564.78565333]
[1762785007292,2.02313093,3607.1,3607.0,4560.57971264]
[1762785007498,1.665216,3607.1,3607.0,4560.57971264]
[1762785007696,5.85824135,3607.1,3607.0,4560.57971264]
[1762785008059,6.22349849,3607.1,3607.0,4560.57971264]
[1762785008895,6.9817945,3607.1,3607.0,4560.57971264]
[1762785009760,6.9817945,3607.1,3607.0,4553.75726538]
[1762785009965,7.3811669,3607.1,3607.0,4553.49406538]
[1762785010462,7.79357702,3607.1,3607.0,4551.72859578]
[1762785010663,7.79357702,3607.1,3607.0,4547.22161812]
[1762785010972,9.75410466,3607.1,3607.0,4547.22161812]
[1762785011187,7.79357702,3607.1,3607.0,4547.22161812]
[1762785011386,7.79357702,3607.1,3607.0,4545.1230798]
[1762785011884,6.9817945,3607.1,3607.0,4540.06610214]
[1762785012296,7.23851477,3607.1,3607.0,4538.30063254]
[1762785012797,8.05029729,3607.1,3607.0,4533.79365488]
[1762785013002,10.82260745,3607.1,3607.0,4533.79365488]
[1762785013363,7.63788717,3607.1,3607.0,4532.02818528]
[1762785013567,10.01082493,3607.1,3607.0,4532.02818528]
[1762785013871,10.01082493,3607.1,3607.0,4527.52120762]
[1762785014218,8.05029729,3607.1,3607.0,4525.20573802]
[1762785014364,7.23951477,3607.1,3607.0,4525.20573802]
[1762785014760,7.23951477,3607.1,3607.0,4520.69876036]
[1762785015004,7.23951477,3607.1,3607.0,4518.93329076]
[1762785015363,10.41119733,3607.1,3607.0,4518.60018623]
[1762785015760,7.63888717,3607.1,3607.0,4514.09320857]
[1762785015992,7.63888717,3607.1,3607.0,4512.32773897]
[1762785016184,7.23951477,3607.1,3607.0,4512.32773897]
[1762785016903,10.01182493,3607.1,3607.0,4506.05529171]
[1762785017267,7.23951477,3607.1,3607.0,4506.05529171]
[1762785017462,10.01182493,3607.1,3607.0,4506.05529171]
[1762785017897,7.23951477,3607.1,3607.0,4501.54831405]
[1762785018418,10.43928066,3607.1,3607.0,4499.23284445]
[1762785018570,7.6669705,3607.1,3607.0,4499.23284445]
[1762785018774,7.23951477,3607.1,3607.0,4499.23284445]
[1762785019473,4.92329877,3607.1,3607.0,4499.23284445]
[1762785019704,5.57429877,3607.1,3607.0,4499.23284445]
[1762785019917,0.90772027,3607.1,3607.0,4501.97968215]
[1762785020073,0.25672027,3607.1,3607.0,4502.43488215]
[1762785020274,0.90772027,3607.1,3607.0,4502.43488215]
[1762785020705,1.31322427,3607.1,3607.0,4502.43488215]
[1762785021373,0.25672027,3607.1,3607.0,4502.43488215]
[1762785021788,0.011,3607.9,3607.8,3.25777227]
[1762785021789,0.73246502,3607.9,3607.8,3.25777227]
[1762785022015,0.001,3608.3,3607.8,0.486]
[1762785022216,0.001,3608.3,3608.2,0.6812]
[1762785022638,0.1023,3609.9,3608.2,1.1364]
[1762785022826,1.312,3609.9,3608.8,0.486]
[1762785023023,0.661,3609.9,3608.8,3.25700421]
[1762785023224,0.661,3609.9,3608.8,4.74514985]
[1762785023572,0.661,3609.9,3608.8,0.9412]
[1762785023748,0.0933,3609.8,3608.8,0.9412]
[1762785024074,0.405504,3608.8,3608.2,0.1952]
[1762785024272,0.404704,3608.2,3607.6,0.1952]
[1762785024869,1.259712,3608.5,3607.6,0.1952]
[1762785024870,1.259712,3608.5,3607.7,0.4552]
[1762785025065,0.01,3608.9,3608.4,0.4894]
[1762785025208,0.01,3608.9,3607.6,0.1952]
[1762785025209,0.0624,3608.5,3607.6,0.1952]
[1762785025412,0.652,3608.6,3608.1,0.002]
[1762785025830,1.139,3608.6,3608.1,0.002]
[1762785026342,0.405504,3608.5,3608.1,0.002]
[1762785027444,0.0624,3608.2,3608.1,0.002]
[1762785027859,0.950704,3608.2,3608.1,0.002]
[1762785028069,0.467904,3608.2,3608.1,0.002]
[1762785029312,0.405504,3608.2,3608.1,0.002]
[1762785029883,0.954904,3608.2,3608.1,0.002]
[1762785030155,2.53035569,3608.2,3608.1,0.002]
[1762785030312,0.72124369,3608.2,3608.1,0.002]
[1762785030512,0.054,3608.9,3608.1,0.9883]
[1762785030513,0.652,3608.4,3608.1,0.9883]
[1762785030714,0.652,3608.3,3608.1,0.9883]
[1762785030912,0.652,3608.3,3608.1,0.4914]
[1762785031186,0.405504,3608.7,3608.1,0.002]
[1762785031345,0.0624,3608.2,3608.1,0.002]
[1762785031541,1.119904,3608.2,3608.1,0.002]
[1762785032072,1.23090703,3608.2,3608.1,0.002]
[1762785032775,2.05328005,3608.2,3608.1,0.002]
[1762785033346,1.23190703,3608.2,3608.1,0.002]
[1762785033559,2.97441903,3608.2,3608.1,0.002]
[1762785033781,3.54416607,3608.2,3608.1,0.002]
[1762785034645,6.31563106,3608.2,3608.1,0.002]
[1762785034841,0.405504,3608.0,3607.8,0.002]
[1762785035151,6.81636773,3607.9,3607.8,0.002]
[1762785035351,7.29926773,3607.9,3607.8,0.002]
[1762785035554,7.29926773,3607.9,3607.4,0.002]
[1762785035555,1.665216,3607.8,3607.4,0.002]
[1762785035789,0.405504,3607.6,3607.4,0.002]
[1762785036083,0.7364031,3607.5,3607.4,0.002]
[1762785036251,1.55683437,3607.5,3607.4,0.002]
[1762785036453,7.11786773,3607.5,3607.4,0.002]
[1762785036756,6.63496773,3607.5,3607.4,0.002]
[1762785036957,2.33364637,3607.5,3607.4,0.002]
[1762785037685,7.11786773,3607.5,3607.4,0.002]
[1762785037984,9.8898705,3607.5,3607.4,0.002]
[1762785038184,9.8898705,3607.5,3607.1,0.00613751]
[1762785038185,7.11786773,3607.5,3607.1,0.00613751]
[1762785038347,4.51204931,3607.2,3607.1,0.00613751]
[1762785038546,4.51204931,3607.2,3607.0,4492.95625951]
[1762785038547,4.51212616,3607.1,3607.0,4492.95625951]
[1762785038787,9.89017789,3607.1,3607.0,4492.95625951]
[1762785039086,10.28475822,3607.1,3607.0,4492.95425951]
[1762785039784,10.28475822,3607.1,3607.0,4486.68381225]
[1762785040146,10.28475822,3607.1,3607.0,4486.68181225]
[1762785040585,10.28475822,3607.1,3607.0,4480.41136499]
[1762785041210,10.54417789,3607.1,3607.0,4480.41136499]
[1762785041375,7.77186773,3607.1,3607.0,4480.41136499]
[1762785041781,10.54417789,3607.1,3607.0,4480.41136499]
[1762785042400,7.77186773,3607.1,3607.0,4480.41136499]
[1762785043111,0.66843037,3607.1,3607.0,4480.41136499]
[1762785043287,0.66843037,3607.1,3607.0,4480.41336499]
[1762785043288,1.4664991,3607.1,3607.0,4480.41336499]
[1762785043487,2.20953437,3607.1,3607.0,4480.41336499]
[1762785044299,7.07456013,3607.1,3607.0,4474.14091773]
[1762785044505,7.46914046,3607.1,3607.0,4474.14091773]
[1762785044671,7.46914046,3607.1,3607.0,4473.59091773]
[1762785044878,7.46914046,3607.1,3607.0,4473.25779959]
[1762785045176,4.6968303,3607.1,3607.0,4473.25779959]
[1762785045496,7.46914046,3607.1,3607.0,4473.25779959]
[1762785046413,7.46914046,3607.1,3607.0,4466.43535233]
[1762785046779,7.46914046,3607.1,3607.0,4463.6925013]
[1762785047288,7.46914046,3607.1,3607.0,4458.01984255]
[1762785047486,7.46914046,3607.1,3607.0,4456.25437295]
[1762785047678,7.88363391,3607.1,3607.0,4437.03767959]
[1762785047877,7.88363391,3607.1,3607.0,4436.20515566]
[1762785048074,8.02854136,3607.1,3607.0,4432.19086083]
[1762785048332,5.2554312,3607.1,3607.0,4429.5924998]
[1762785048822,6.33893775,3607.1,3607.0,4426.10145594]
[1762785049120,6.33893775,3607.1,3607.0,4423.41973928]
[1762785049319,6.33893775,3607.1,3607.0,4419.88880008]
[1762785049623,6.7534312,3607.1,3607.0,4416.39775622]
[1762785049973,6.33893775,3607.1,3607.0,4415.56486479]
[1762785050178,6.33893775,3607.1,3607.0,4413.71603956]
[1762785050392,6.33893775,3607.1,3607.0,4409.35220893]
[1762785050579,6.33893775,3607.1,3607.0,4408.4595261]
[1762785050893,6.33893775,3607.1,3607.0,4407.62663467]
[1762785051221,6.33893775,3607.1,3607.0,4403.46233984]
[1762785051425,6.33893775,3607.1,3607.0,4400.86397881]
[1762785051583,6.33893775,3607.1,3607.0,4399.97129598]
[1762785051776,6.33893775,3607.1,3607.0,4399.1385294]
[1762785051996,6.33893775,3607.1,3607.0,4397.3730598]
[1762785052191,6.33893775,3607.1,3607.0,4395.52423457]
[1762785052478,6.33893775,3607.1,3607.0,4393.75876497]
[1762785052693,6.33893775,3607.1,3607.0,4392.86608214]
[1762785053116,6.33893775,3607.1,3607.0,4387.86902073]
[1762785053411,6.33893775,3607.1,3607.0,4386.10355113]
[1762785053578,46.33893775,3607.1,3607.0,4384.37810172]
[1762785053778,36.33893775,3607.1,3607.0,4384.37810172]
[1762785054001,36.33893775,3607.1,3607.0,4382.61263212]
[1762785054211,36.33893775,3607.1,3607.0,4370.50080689]
[1762785054410,36.33893775,3607.1,3607.0,4368.64833729]
[1762785054713,36.33893775,3607.1,3607.0,4367.75565446]
[1762785054918,36.33893775,3607.1,3607.0,4365.65701134]
[1762785055120,36.33893775,3607.1,3607.0,4363.80818611]
[1762785055316,36.33893775,3607.1,3607.0,4362.04271651]
[1762785055818,34.18793775,3607.1,3607.0,4361.15003368]
[1762785055985,36.33793775,3607.1,3607.0,4359.35756408]
[1762785056211,36.33793775,3607.1,3607.0,4357.47273885]
[1762785056552,36.33793775,3607.1,3607.0,4323.42203307]
[1762785056763,16.73793775,3607.1,3607.0,4322.52935024]
[1762785056942,16.73793775,3607.1,3607.0,4301.91221006]
[1762785057248,17.00752375,3607.1,3607.0,4269.25721015]
[1762785057448,16.5930303,3607.1,3607.0,4265.18190456]
[1762785057647,16.5930303,3607.1,3607.0,4260.10913798]
[1762785057946,16.5930303,3607.1,3607.0,4257.45098555]
[1762785058153,16.73793829,3607.1,3607.0,4254.76931976]
[1762785058317,16.53943174,3607.1,3607.0,4252.39085016]
[1762785058517,16.53943174,3607.1,3607.0,4250.9050096]
[1762785058719,16.53943174,3607.1,3607.0,4248.24685717]
[1762785058914,16.26443174,3607.1,3607.0,4245.22142169]
[1762785059119,8.75243174,3607.1,3607.0,4234.48592318]
[1762785059340,8.75243174,3607.1,3607.0,4231.88761302]
[1762785059515,8.75243174,3607.1,3607.0,4222.12980439]
[1762785059716,8.75243174,3607.1,3607.0,4218.22454203]
[1762785059928,8.75243174,3607.1,3607.0,4216.45907243]
[1762785060151,36.75243174,3607.1,3607.0,4213.77740664]
[1762785060335,36.75243174,3607.1,3607.0,4212.01193704]
[1762785060539,36.75243174,3607.1,3607.0,4183.57491693]
[1762785060540,36.33793829,3607.1,3607.0,4183.57491693]
[1762785060712,36.71789704,3607.1,3607.0,4161.26425677]
[1762785060917,36.71889704,3607.1,3607.0,4145.88597025]
[1762785061137,36.71889704,3607.1,3607.0,4143.10970356]
[1762785061422,36.71889704,3607.1,3607.0,4138.3912824]
[1762785061617,34.40925396,3607.1,3607.0,4138.3912824]
[1762785061924,35.96393429,3607.1,3607.0,4135.73312997]
[1762785062266,36.34389304,3607.1,3607.0,4131.28588358]
[1762785062449,36.74939704,3607.1,3607.0,4128.68746242]
[1762785062751,36.74939704,3607.1,3607.0,4127.79477959]
[1762785062956,40.99279134,3607.1,3607.0,4124.44772125]
[1762785063153,37.31433626,3607.1,3607.0,4124.44772125]
[1762785063356,37.96733626,3607.1,3607.0,4124.44772125]
[1762785063654,40.61283259,3607.1,3607.0,4124.44772125]
[1762785063861,40.13823259,3607.1,3607.0,4124.44772125]
[1762785064639,40.61283259,3607.1,3607.0,4124.44772125]
[1762785064846,40.61283259,3607.1,3607.0,4116.29353982]
[1762785065041,40.61283259,3607.1,3607.0,4115.46078248]
[1762785065245,40.61283259,3607.1,3607.0,4114.82840987]
[1762785065445,40.61283259,3607.1,3607.0,4113.99565253]
[1762785065736,40.61283259,3607.1,3607.0,4113.16289519]
[1762785066337,40.61283259,3607.1,3607.0,4101.45448239]
[1762785066664,40.61283259,3607.1,3607.0,4097.21448239]
[1762785066864,40.61283259,3607.1,3607.0,4096.38172505]
[1762785067037,40.61283259,3607.1,3607.0,4096.04851438]
[1762785067238,40.61283259,3607.1,3607.0,4095.21575704]
[1762785067442,40.61283259,3607.1,3607.0,4085.76276064]
[1762785067760,40.61283259,3607.1,3607.0,4084.9300033]
[1762785068063,40.35733349,3607.1,3607.0,4082.99403324]
[1762785068470,35.63933919,3607.1,3607.0,4073.98161817]
[1762785068627,39.93425316,3607.1,3607.0,4059.14161817]
[1762785068832,40.35733349,3607.1,3607.0,4053.60161817]
[1762785069977,39.80013349,3607.1,3607.0,4053.60161817]
[1762785070126,39.88673349,3607.1,3607.0,4053.60161817]
[1762785070538,40.35743349,3607.1,3607.0,4053.60161817]
[1762785071964,39.87093349,3607.1,3607.0,4053.60161817]
[1762785072271,9.87013349,3607.1,3607.0,4053.60161817]
[1762785072476,9.79933349,3607.1,3607.0,4053.60161817]
[1762785072669,6.11313919,3607.1,3607.0,4053.60161817]
[1762785072876,46.11313919,3607.1,3607.0,4053.60161817]
[1762785073175,36.11313919,3607.1,3607.0,4053.60161817]
[1762785075451,36.11313919,3607.1,3607.0,4052.93525312]
[1762785075645,36.11313919,3607.1,3607.0,4051.55243568]
[1762785075852,36.11313919,3607.1,3607.0,4049.10774305]
[1762785075853,36.52459794,3607.1,3607.0,4049.10774305]
[1762785076072,36.52459794,3607.1,3607.0,4047.80505491]
[1762785076073,37.80811473,3607.1,3607.0,4047.80505491]
[1762785076372,34.37259794,3607.1,3607.0,4047.80505491]
[1762785076552,36.52459794,3607.1,3607.0,4046.97223747]
[1762785076885,36.52459794,3607.1,3607.0,3629.4756954]
[1762785077086,36.52459794,3607.1,3607.0,3629.14242418]
[1762785077303,36.52459794,3607.1,3607.0,3628.30960674]
[1762785077783,42.95128562,3607.1,3607.0,3627.47655804]
[1762785078185,42.95128562,3607.1,3607.0,3626.64350934]
[1762785078697,42.95128562,3607.1,3607.0,3625.81046064]
[1762785079061,34.37259794,3607.1,3607.0,3624.97741194]
[1762785079270,31.73872319,3607.1,3607.0,3624.97741194]
[1762785079590,34.79815486,3607.1,3607.0,3624.97741194]
[1762785079788,33.95228397,3607.1,3607.0,3624.97741194]
[1762785080009,33.88148397,3607.1,3607.0,3624.97741194]
[1762785080452,35.63459597,3607.1,3607.0,3624.97741194]
[1762785080650,37.80325582,3607.1,3607.0,3624.42741194]
[1762785080849,37.80325582,3607.1,3607.0,3623.82386731]
[1762785081053,37.85325582,3607.1,3607.0,3622.52497733]
[1762785081309,37.80325582,3607.1,3607.0,3621.81135352]
[1762785081489,40.62556598,3607.1,3607.0,3620.97817063]
[1762785081786,40.62556598,3607.1,3607.0,3618.50741921]
[1762785081987,40.62556598,3607.1,3607.0,3618.20409677]
[1762785082163,43.49756598,3607.1,3607.0,3609.16910983]
[1762785082368,43.49756598,3607.1,3607.0,3606.21541448]
[1762785082369,40.16410723,3607.1,3607.0,3606.21541448]
[1762785082597,40.69128415,3607.1,3607.0,3593.92194186]
[1762785082798,10.59128416,3607.1,3607.0,3508.66452155]
[1762785083044,40.69128415,3607.1,3607.0,3506.83137684]
[1762785083321,10.69128415,3607.1,3607.0,3498.35137684]
[1762785083476,10.69128415,3607.1,3607.0,3470.70304585]
[1762785083827,40.69128415,3607.1,3607.0,3460.23303208]
[1762785084008,40.69128415,3607.1,3607.0,3454.9968916]
[1762785084211,40.59128416,3607.1,3607.0,3442.43088818]
[1762785084375,40.59128416,3607.1,3607.0,3435.41509718]
[1762785084581,38.93041013,3607.1,3607.0,3432.63930618]
[1762785084813,39.41166205,3607.1,3607.0,3395.38523363]
[1762785085118,11.80904049,3607.1,3607.0,3357.56072701]
[1762785085282,11.7090405,3607.1,3607.0,3352.62525299]
[1762785085479,12.26104049,3607.1,3607.0,3329.00552626]
[1762785085717,12.26104049,3607.1,3607.0,3244.72010383]
[1762785085718,13.62680766,3607.1,3607.0,3244.72010383]
[1762785085921,11.99693078,3607.1,3607.0,3153.46483811]
[1762785086078,11.99693078,3607.1,3607.0,3098.44291708]
[1762785086079,12.17010039,3607.1,3607.0,3098.44291708]
[1762785086278,55.67110039,3607.1,3607.0,3083.5171047]
[1762785086505,55.67110039,3607.1,3607.0,3031.62980673]
[1762785086707,55.67310039,3607.1,3607.0,3000.49444041]
[1762785086935,61.92789638,3607.1,3607.0,2961.09144041]
[1762785087102,58.84493078,3607.1,3607.0,2955.19345592]
[1762785087421,55.97274648,3607.1,3607.0,2893.76728938]
[1762785087640,84.61303449,3607.1,3607.0,2871.73378704]
[1762785087801,84.60244099,3607.1,3607.0,2858.97256932]
[1762785087999,84.85193699,3607.1,3607.0,2856.85256932]
[1762785088204,35.85193699,3607.1,3607.0,2856.85256932]
[1762785088405,35.96093982,3607.1,3607.0,2856.85256932]
[1762785088643,37.48938917,3607.1,3607.0,2854.74256932]
[1762785088844,35.55543582,3607.1,3607.0,2854.74256932]
[1762785089051,35.55543582,3607.1,3607.0,2853.74251596]
[1762785089253,35.89293982,3607.1,3607.0,2853.74251596]
[1762785089403,37.15265182,3607.1,3607.0,2853.74251596]
[1762785090242,36.49765182,3607.1,3607.0,2853.74251596]
[1762785090565,7.45300188,3607.1,3607.0,2760.35730989]
[1762785090858,13.70483774,3607.1,3607.0,2749.7238968]
[1762785091020,13.70483774,3607.1,3607.0,2726.28953376]
[1762785091222,59.04560744,3607.1,3607.0,2694.39885518]
[1762785091419,58.73179414,3607.1,3607.0,2657.89352287]
[1762785091633,58.95004504,3607.1,3607.0,2597.85989942]
[1762785091806,60.72674504,3607.1,3607.0,2590.98444818]
[1762785092007,60.55488065,3607.1,3607.0,2566.65923472]
[1762785092208,60.89088871,3607.1,3607.0,2534.18818347]
[1762785092408,60.89088871,3607.1,3607.0,2502.04034408]
[1762785092661,58.73688871,3607.1,3607.0,2481.54034408]
[1762785092964,58.73688871,3607.1,3607.0,2440.1067931]
[1762785093257,58.63688872,3607.1,3607.0,2383.68301286]
[1762785093467,58.57608809,3607.1,3607.0,2351.56301286]
[1762785093610,59.17095404,3607.1,3607.0,2325.41609935]
[1762785093810,58.98001425,3607.1,3607.0,2293.90196329]
[1762785094122,58.98001425,3607.1,3607.0,2263.80859466]
[1762785094123,59.17630564,3607.1,3607.0,2263.80859466]
[1762785094307,60.47841315,3607.1,3607.0,2250.11705695]
[1762785094507,59.11264598,3607.1,3607.0,2238.60239228]
[1762785094711,59.11264598,3607.1,3607.0,2238.04071164]
[1762785094948,59.2442591,3607.1,3607.0,2204.08607881]
[1762785095137,59.2442591,3607.1,3607.0,2183.34799997]
[1762785095448,59.38933674,3607.1,3607.0,2151.96678079]
[1762785095645,59.82455724,3607.1,3607.0,2118.43989824]
[1762785095847,59.64910017,3607.1,3607.0,2082.73772984]
[1762785096156,57.05937194,3607.1,3607.0,2007.5019533]
[1762785096469,57.05857194,3607.1,3607.0,1970.03947657]
[1762785096655,57.39378411,3607.1,3607.0,1939.66493351]
[1762785096945,57.4937841,3607.1,3607.0,1924.42810579]
[1762785097148,57.4937841,3607.1,3607.0,1891.38601316]
[1762785097442,57.34870646,3607.1,3607.0,1874.3219516]
[1762785097646,57.34870646,3607.1,3607.0,1864.73326388]
[1762785097857,57.34870646,3607.1,3607.0,1821.99840179]
[1762785098063,57.34870646,3607.1,3607.0,1798.54438735]
[1762785098261,57.34870646,3607.1,3607.0,1762.18438735]
[1762785098412,57.4937915,3607.1,3607.0,1740.85037291]
[1762785098614,57.4937915,3607.1,3607.0,1710.6225121]
[1762785098810,57.32131978,3607.1,3607.0,1695.18132272]
[1762785099041,58.66850641,3607.1,3607.0,1652.24308853]
[1762785099255,57.30273924,3607.1,3607.0,1628.9538198]
[1762785099459,57.46603505,3607.1,3607.0,1603.74222987]
[1762785099744,57.43729469,3607.1,3607.0,1602.12414231]
[1762785099944,57.2443331,3607.1,3607.0,1599.54399863]
[1762785100168,55.14501848,3607.1,3607.0,1592.5326922]
[1762785100409,56.13201523,3607.1,3607.0,1581.1635417]
[1762785100694,55.27473343,3607.1,3607.0,1557.32078452]
[1762785100831,54.93120653,3607.1,3607.0,1555.4800761]
[1762785101031,57.72547562,3607.1,3607.0,1539.37511912]
[1762785101243,57.65661083,3607.1,3607.0,1531.88878694]
[1762785101508,57.37368705,3607.1,3607.0,1527.9835254]
[1762785101631,70.82828525,3607.1,3607.0,1524.4103289]
[1762785101828,70.82828525,3607.1,3607.0,1522.04526415]
[1762785101829,70.36525545,3607.1,3607.0,1522.04526415]
[1762785102030,70.36525545,3607.1,3607.0,1520.4336419]
[1762785102031,72.57525545,3607.1,3607.0,1520.4336419]
[1762785102266,72.98075945,3607.1,3607.0,1513.96950136]
[1762785102446,74.34652662,3607.1,3607.0,1511.32139213]
[1762785102652,74.34652662,3607.1,3607.0,1510.64089694]
[1762785102858,74.18002883,3607.1,3607.0,1509.16705959]
[1762785103167,74.34798291,3607.1,3607.0,1505.68594886]
[1762785103370,70.79631328,3607.1,3607.0,1504.85161433]
[1762785103539,69.70706058,3607.1,3607.0,1432.08734206]
[1762785103741,55.48905426,3607.1,3607.0,1409.5920076]
[1762785103942,55.48905426,3607.1,3607.0,1387.37370889]
[1762785103943,56.41960093,3607.1,3607.0,1387.37370889]
[1762785104149,55.75960093,3607.1,3607.0,1386.53917476]
[1762785104384,55.93530702,3607.1,3607.0,1386.53917476]
[1762785104535,56.78370848,3607.1,3607.0,1385.70464063]
[1762785104735,57.06140848,3607.1,3607.0,1385.29101414]
[1762785104980,57.49683882,3607.1,3607.0,1384.2879344]
[1762785105142,57.49683882,3607.1,3607.0,1377.62204273]
[1762785105342,65.93225172,3607.1,3607.0,1374.42440508]
[1762785105639,65.93225172,3607.1,3607.0,1365.74902064]
[1762785105862,65.49306195,3607.1,3607.0,1363.83339506]
[1762785106073,65.49306195,3607.1,3607.0,1360.60127029]
[1762785106285,65.6568694,3607.1,3607.0,1359.25960295]
[1762785106433,65.64080541,3607.1,3607.0,1350.18111831]
[1762785106646,65.27270503,3607.1,3607.0,1346.49093944]
[1762785106844,65.27270503,3607.1,3607.0,1341.58586103]